bitfinex/quotes_BTCUSD_20250826
["timestamp","ask_amount","ask_price","bid_price","bid_amount"]
[1756248437317,0.59995216,111900.0,111890.0,0.29237899]
[1756248437318,0.178731,111900.0,111890.0,0.29237899]
[1756248437729,0.59782216,111900.0,111890.0,0.29237899]
[1756248437935,0.59782216,111900.0,111890.0,0.29337899]
[1756248438148,0.59782216,111900.0,111890.0,0.47212597]
[1756248438560,0.59782216,111900.0,111890.0,0.47312597]
[1756248439182,0.178731,111900.0,111890.0,0.47312597]
[1756248439390,0.59782216,111900.0,111890.0,0.47312597]
[1756248441811,0.17871503,111910.0,111890.0,0.47312597]
[1756248442023,0.59780619,111910.0,111900.0,0.18397513]
[1756248442257,0.59993619,111910.0,111900.0,0.07048911]
[1756248442466,0.59993619,111910.0,111900.0,0.07272324]
[1756248443657,0.59993619,111910.0,111900.0,0.06971324]
[1756248443872,0.59993619,111910.0,111900.0,0.15404]
[1756248445342,0.18084503,111910.0,111900.0,0.15404]
[1756248445545,0.59780619,111910.0,111900.0,0.35753415]
[1756248445749,0.59993619,111910.0,111900.0,0.17656902]
[1756248445953,0.59993619,111910.0,111900.0,0.17880315]
[1756248446188,0.59993619,111910.0,111900.0,0.06908116]
[1756248446392,0.59993619,111910.0,111900.0,0.22097116]
[1756248446568,0.59993619,111910.0,111900.0,0.21873703]
[1756248448198,0.6191858,111910.0,111900.0,0.06477703]
[1756248448403,0.6191959,111910.0,111900.0,0.22097116]
[1756248448609,0.6191959,111910.0,111900.0,0.21873703]
[1756248451217,0.6191959,111910.0,111900.0,0.22080703]
[1756248451433,0.19797474,111910.0,111900.0,0.40254803]
[1756248451639,0.6170659,111910.0,111900.0,0.40254803]
[1756248451820,0.6191959,111910.0,111900.0,0.40254803]
[1756248452055,0.6170659,111910.0,111900.0,0.40254803]
[1756248452258,0.6170659,111910.0,111900.0,0.42942603]
[1756248452492,0.62543781,111910.0,111900.0,0.42942603]
[1756248454376,0.62543781,111910.0,111900.0,0.25069503]
[1756248454579,0.62756781,111910.0,111900.0,0.09673503]
[1756248454784,0.62756781,111910.0,111900.0,0.25488329]
[1756248455003,0.62756781,111910.0,111900.0,0.25041503]
[1756248455985,0.62756908,111910.0,111900.0,0.09673503]
[1756248456192,0.20634792,111910.0,111900.0,0.25041503]
[1756248456459,0.62756908,111910.0,111900.0,0.25041503]
[1756248458039,0.62756908,111910.0,111900.0,0.24732503]
[1756248459161,0.62756908,111910.0,111900.0,0.42605603]
[1756248459581,0.62757568,111910.0,111900.0,0.42918603]
[1756248460032,0.62757485,111910.0,111900.0,0.42918603]
[1756248460661,0.62757485,111910.0,111900.0,0.25045503]
[1756248461834,0.62757485,111910.0,111900.0,0.42918603]
[1756248462781,0.62757485,111910.0,111900.0,0.25045503]
[1756248463398,0.6191959,111910.0,111900.0,0.25045503]
[1756248463799,0.6170659,111910.0,111900.0,0.42918603]
[1756248464407,0.59780619,111910.0,111900.0,0.42918603]
[1756248464615,0.59993619,111910.0,111900.0,0.42918603]
[1756248465906,0.59993619,111910.0,111900.0,0.25045503]
[1756248466558,0.59993619,111910.0,111900.0,0.42918603]
[1756248466763,0.59993619,111910.0,111900.0,0.49794603]
[1756248470747,0.59993619,111910.0,111900.0,0.16561503]
[1756248470897,0.59993619,111910.0,111900.0,0.31865503]
[1756248471278,0.59993619,111910.0,111900.0,0.49738603]
[1756248471492,0.59993619,111910.0,111900.0,0.31552503]
[1756248472074,0.59993619,111910.0,111900.0,0.31865503]
[1756248472625,0.59993619,111910.0,111900.0,0.49738603]
[1756248472955,0.18084503,111910.0,111900.0,0.49738603]
[1756248473164,0.59780619,111910.0,111900.0,0.49738603]
[1756248475309,0.60683174,111920.0,111910.0,0.17871503]
[1756248475522,0.17871503,111910.0,111900.0,0.34227603]
[1756248475731,0.59780619,111910.0,111900.0,0.49559603]
[1756248475938,0.59780619,111910.0,111900.0,0.49775603]
[1756248476604,0.41909116,111910.0,111900.0,0.49775603]
[1756248477431,0.41909116,111910.0,111900.0,0.50075603]
[1756248477663,0.18774058,111920.0,111910.0,0.17871503]
[1756248477878,0.60683174,111920.0,111910.0,0.24889607]
[1756248478087,0.60896174,111920.0,111910.0,0.24666214]
[1756248478293,0.60896174,111920.0,111910.0,0.18087503]
[1756248478503,0.6179903,111920.0,111910.0,0.18623896]
[1756248478709,0.6179903,111920.0,111910.0,0.18400503]
[1756248478959,0.6179903,111920.0,111910.0,0.18087503]
[1756248479200,0.6179903,111920.0,111910.0,0.15859393]
[1756248479933,0.6179903,111920.0,111910.0,0.20968093]
[1756248480142,0.6179903,111920.0,111910.0,0.207447]
[1756248480353,0.6179903,111920.0,111910.0,0.15736]
[1756248480570,0.6210803,111920.0,111910.0,0.00423393]
[1756248480779,1.04017146,111920.0,111910.0,0.15516]
[1756248481451,1.04017146,111920.0,111910.0,0.002]
[1756248481727,1.04017146,111920.0,111910.0,0.15524]
[1756248481942,0.19889914,111920.0,111910.0,0.38649747]
[1756248482174,0.6179903,111920.0,111910.0,0.04701851]
[1756248482399,0.6179903,111920.0,111910.0,0.20361244]
[1756248482642,0.6179903,111920.0,111910.0,0.20137851]
[1756248482866,0.6179903,111920.0,111910.0,0.20353851]
[1756248483334,0.6179903,111920.0,111910.0,0.20137851]
[1756248485205,0.6179903,111920.0,111910.0,0.04701851]
[1756248485421,0.82734254,111920.0,111910.0,0.20353244]
[1756248485663,0.82734254,111920.0,111910.0,0.20121851]
[1756248486105,0.83043254,111920.0,111910.0,0.1562]
[1756248486602,0.82734254,111920.0,111910.0,0.15843393]
[1756248487496,0.82734254,111920.0,111910.0,0.00423393]
[1756248487704,0.82734254,111920.0,111910.0,0.15835393]
[1756248493759,1.16734254,111920.0,111910.0,0.15835393]
[1756248493960,1.16734254,111920.0,111910.0,0.20099604]
[1756248494181,1.16734254,111920.0,111910.0,0.19876211]
[1756248494413,1.19421954,111920.0,111910.0,0.19876211]
[1756248502823,1.19421954,111920.0,111910.0,0.04464211]
[1756248503053,1.19742954,111920.0,111910.0,0.1554]
[1756248503280,1.19421954,111920.0,111910.0,0.1554]
[1756248504550,0.56577614,111920.0,111910.0,0.1554]
[1756248504745,1.19421954,111920.0,111910.0,0.1554]
[1756248504947,1.18519098,111920.0,111910.0,0.1554]
[1756248505920,1.18840098,111920.0,111910.0,0.1554]
[1756248506584,1.18519098,111920.0,111910.0,0.1554]
[1756248506985,1.18840098,111920.0,111910.0,0.1554]
[1756248507816,1.18840098,111920.0,111910.0,0.15528]
[1756248508754,0.55995758,111920.0,111910.0,0.19760581]
[1756248508963,1.18840098,111920.0,111910.0,0.19760581]
[1756248509326,0.55674758,111920.0,111910.0,0.19760581]
[1756248509730,1.18840098,111920.0,111910.0,0.19760581]
[1756248509919,1.18840098,111920.0,111910.0,0.15528]
[1756248510556,1.18519098,111920.0,111910.0,0.15528]
[1756248512093,1.18840098,111920.0,111910.0,0.15528]
[1756248512293,1.18519098,111920.0,111910.0,0.15528]
[1756248512489,1.50262268,111920.0,111910.0,0.002]
[1756248512691,1.59406797,111920.0,111910.0,0.15544]
[1756248512945,4.78058207,111920.0,111910.0,0.002]
[1756248513121,4.80827923,111920.0,111910.0,0.002]
[1756248513453,4.93394207,111920.0,111910.0,0.002]
[1756248513810,4.78058207,111920.0,111910.0,0.002]
[1756248514021,4.93394207,111920.0,111910.0,0.001]
[1756248514243,4.93494207,111920.0,111910.0,0.001]
[1756248514692,3.99227697,111920.0,111910.0,0.001]
[1756248514838,0.51871503,111910.0,111900.0,0.22212]
[1756248515040,3.39309743,111910.0,111900.0,0.15336]
[1756248515249,1.46668013,111910.0,111900.0,0.15336]
[1756248515459,1.49356113,111910.0,111900.0,0.15336]
[1756248515852,0.17874698,111890.0,111880.0,0.08920902]
[1756248516094,0.80719038,111890.0,111880.0,0.2444868]
[1756248516521,0.80719038,111890.0,111880.0,0.42324976]
[1756248516701,0.51984816,111900.0,111880.0,0.42324976]
[1756248516911,0.3142217,111890.0,111880.0,0.42020976]
[1756248517127,0.3142217,111890.0,111880.0,0.50517462]
[1756248517523,0.026881,111900.0,111890.0,0.196196]
[1756248517754,0.3411027,111900.0,111890.0,0.201536]
[1756248518113,0.3142217,111900.0,111890.0,0.201536]
[1756248518322,0.3142217,111900.0,111890.0,0.24194168]
[1756248518733,0.3142217,111900.0,111890.0,0.24494168]
[1756248519392,0.54559515,111910.0,111900.0,0.178731]
[1756248519598,0.54559515,111910.0,111900.0,0.33958513]
[1756248519803,0.54559515,111910.0,111900.0,0.337351]
[1756248520052,0.54559515,111910.0,111900.0,0.39504627]
[1756248520565,0.96458628,111910.0,111900.0,0.39504627]
[1756248520769,0.78586913,111910.0,111900.0,0.41349529]
[1756248521315,0.44586913,111910.0,111900.0,0.41349529]
[1756248521519,0.41899113,111910.0,111900.0,0.41349529]
[1756248522267,0.59770616,111910.0,111900.0,0.41449529]
[1756248524604,0.17871503,111910.0,111900.0,0.41449529]
[1756248524818,0.59770616,111910.0,111900.0,0.41449529]
[1756248525022,0.41899113,111910.0,111900.0,0.41449529]
[1756248525233,0.41899113,111910.0,111900.0,0.48325529]
[1756248527217,0.59770616,111910.0,111900.0,0.48325529]
[1756248532289,0.59770616,111910.0,111900.0,0.32997529]
[1756248532530,0.59983616,111910.0,111900.0,0.30408429]
[1756248532732,0.59983616,111910.0,111900.0,0.14802429]
[1756248532939,0.60289616,111910.0,111900.0,0.07076]
[1756248533322,0.62977416,111910.0,111900.0,0.2236]
[1756248536397,0.62977416,111910.0,111900.0,0.07076]
[1756248536607,0.62977416,111910.0,111900.0,0.2236]
[1756248537900,0.62977416,111910.0,111900.0,0.07076]
[1756248538195,0.62977416,111910.0,111900.0,0.22356]
[1756248541002,0.62671416,111910.0,111900.0,0.22356]
[1756248541232,0.20559303,111910.0,111900.0,0.4481837]
[1756248541451,0.51982049,111910.0,111900.0,0.46563272]
[1756248541665,0.34110546,111910.0,111900.0,0.46563272]
[1756248542084,0.1391887,111910.0,111900.0,0.46563272]
[1756248542436,0.31790373,111910.0,111900.0,0.46563272]
[1756248543044,0.17871503,111910.0,111900.0,0.46563272]
[1756248543259,0.49294249,111910.0,111900.0,0.46563272]
[1756248543490,0.59770237,111910.0,111900.0,0.46563272]
[1756248544092,0.59983237,111910.0,111900.0,0.28140172]
[1756248544338,0.60289237,111910.0,111900.0,0.28140172]
[1756248544555,0.62976937,111910.0,111900.0,0.28140172]
[1756248544756,0.62670937,111910.0,111900.0,0.28140172]
[1756248545401,0.62670937,111910.0,111900.0,0.28352172]
[1756248545726,0.62670937,111910.0,111900.0,0.28356172]
[1756248546140,0.62670937,111910.0,111900.0,0.13088172]
[1756248546362,0.62670937,111910.0,111900.0,0.28140172]
[1756248547221,0.20772203,111910.0,111900.0,0.28338172]
[1756248547435,0.62670937,111910.0,111900.0,0.46211272]
[1756248548241,0.62670937,111910.0,111900.0,0.28338172]
[1756248548826,0.62670937,111910.0,111900.0,0.13074172]
[1756248549029,0.62670937,111910.0,111900.0,0.46001272]
[1756248549237,0.62670937,111910.0,111900.0,0.28326172]
[1756248549448,0.62457937,111910.0,111900.0,0.46514272]
[1756248549900,0.62457937,111910.0,111900.0,0.28641172]
[1756248550119,0.62663937,111910.0,111900.0,0.13074172]
[1756248550323,0.20765203,111910.0,111900.0,0.21446172]
[1756248550525,0.62663937,111910.0,111900.0,0.21446172]
[1756248550728,0.62663937,111910.0,111900.0,0.21761172]
[1756248553224,0.62663937,111910.0,111900.0,0.06513172]
[1756248553460,0.62663937,111910.0,111900.0,0.21232172]
[1756248553920,0.59976237,111910.0,111900.0,0.21232172]
[1756248554556,0.59976237,111910.0,111900.0,0.39303272]
[1756248554762,0.59770237,111910.0,111900.0,0.39618272]
[1756248555177,0.59770237,111910.0,111900.0,0.46494272]
[1756248558003,0.55461758,111920.0,111910.0,0.17871503]
[1756248558219,0.97566492,111920.0,111910.0,0.06436578]
[1756248559339,0.97566492,111920.0,111900.0,0.46196272]
[1756248559559,0.41898734,111910.0,111900.0,0.46096272]
[1756248559782,0.59770237,111910.0,111900.0,0.46294272]
[1756248560910,0.41898734,111910.0,111900.0,0.31062272]
[1756248561132,0.41898734,111910.0,111900.0,0.46382272]
[1756248563062,0.56860284,111920.0,111900.0,0.46382272]
[1756248563269,0.41898734,111910.0,111900.0,0.46382272]
[1756248563903,0.41898734,111910.0,111900.0,0.46282272]
[1756248564700,0.41898734,111910.0,111900.0,0.46382272]
[1756248565521,0.31423118,111910.0,111900.0,0.46382272]
[1756248570272,0.14185621,111910.0,111900.0,0.46382272]
[1756248572866,0.04086211,111920.0,111910.0,0.19616405]
[1756248573078,0.01398511,111920.0,111910.0,0.28611189]
[1756248573289,0.34905864,111930.0,111920.0,0.19614809]
[1756248573496,0.55667374,111930.0,111920.0,0.20127809]
[1756248573707,0.55974374,111930.0,111920.0,0.16928902]
[1756248574124,0.55974374,111930.0,111920.0,0.16828902]
[1756248574329,0.55974374,111930.0,111920.0,0.16832902]
[1756248574530,1.1882061,111930.0,111920.0,0.16832902]
[1756248576255,1.1882061,111930.0,111920.0,0.16932902]
[1756248576465,1.1882061,111930.0,111920.0,0.16928902]
[1756248577481,0.97864203,111930.0,111920.0,0.16928902]
[1756248578329,0.97557203,111930.0,111920.0,0.16928902]
[1756248579081,0.97557203,111930.0,111920.0,0.16916902]
[1756248582054,0.97863203,111930.0,111920.0,0.001]
[1756248582349,0.97863203,111930.0,111920.0,0.15264]
[1756248583249,0.55973374,111930.0,111920.0,0.15264]
[1756248583523,0.97863203,111930.0,111920.0,0.15264]
[1756248583805,0.97863203,111930.0,111920.0,0.18783537]
[1756248584517,0.97557203,111930.0,111920.0,0.18783537]
[1756248585163,0.97863203,111930.0,111920.0,0.18783537]
[1756248585386,0.97863203,111930.0,111920.0,0.15264]
[1756248590558,0.97863203,111930.0,111920.0,0.001]
[1756248590769,0.97863203,111930.0,111920.0,0.15248]
[1756248592166,0.97863203,111930.0,111920.0,0.15244]
[1756248592980,0.55973374,111930.0,111920.0,0.15244]
[1756248593420,0.97863203,111930.0,111920.0,0.15244]
[1756248596626,0.97863203,111930.0,111920.0,0.001]
[1756248596834,0.97863203,111930.0,111920.0,0.1524]
[1756248597250,0.97863203,111930.0,111920.0,0.15232]
[1756248598919,0.97863203,111930.0,111920.0,0.001]
[1756248599124,0.97863203,111930.0,111920.0,0.15232]
[1756248599336,1.18814626,111930.0,111920.0,0.15232]
[1756248603045,1.18814626,111930.0,111920.0,0.001]
[1756248603283,1.27959155,111930.0,111920.0,0.001]
[1756248603473,3.52344055,111930.0,111920.0,0.15232]
[1756248606343,3.43199526,111930.0,111920.0,0.15232]
[1756248609394,3.44597948,111930.0,111920.0,0.15232]
[1756248609694,2.81756696,111930.0,111920.0,0.15232]
[1756248609918,3.44597948,111930.0,111920.0,0.15232]
[1756248611659,2.81450696,111930.0,111920.0,0.15232]
[1756248611798,3.44291948,111930.0,111920.0,0.15232]
[1756248613092,3.44610948,111930.0,111920.0,0.15232]
[1756248615314,3.44291948,111930.0,111920.0,0.15232]
[1756248619389,0.88280422,111930.0,111920.0,0.33620907]
[1756248619591,0.86882,111930.0,111920.0,0.15751]
[1756248619804,0.86882,111930.0,111920.0,0.33620907]
[1756248620632,0.37593064,111930.0,111920.0,0.38770145]
[1756248620835,0.6901369,111930.0,111920.0,0.40515047]
[1756248621509,0.34107826,111930.0,111920.0,0.40515047]
[1756248622181,0.31420626,111930.0,111920.0,0.40515047]
[1756248622682,0.5197454,111940.0,111930.0,0.1786831]
[1756248622900,0.84793466,111940.0,111930.0,0.23910646]
[1756248623127,0.84793466,111940.0,111930.0,0.24225646]
[1756248623354,0.83395166,111940.0,111930.0,0.24225646]
[1756248623580,0.68107826,111940.0,111930.0,0.31097646]
[1756248623819,0.69015473,111940.0,111930.0,0.31097646]
[1756248624037,0.69024012,111940.0,111930.0,0.31097646]
[1756248625263,0.37603386,111940.0,111930.0,0.32842548]
[1756248625479,0.32336812,111940.0,111930.0,0.32842548]
[1756248625715,0.66436812,111940.0,111930.0,0.32842548]
[1756248625931,0.32436812,111940.0,111930.0,0.32842548]
[1756248626346,0.66436812,111940.0,111930.0,0.32942548]
[1756248627015,0.66336812,111940.0,111930.0,0.32942548]
[1756248627438,0.34916186,111940.0,111930.0,0.32942548]
[1756248628394,0.34916186,111940.0,111930.0,0.33142548]
[1756248628572,0.76785739,111940.0,111930.0,0.33142548]
[1756248630228,0.34916186,111940.0,111930.0,0.33142548]
[1756248630434,0.76785739,111940.0,111930.0,0.33142548]
[1756248631000,8.539e-05,111940.0,111930.0,0.33142548]
[1756248631586,8.539e-05,111940.0,111930.0,0.35829248]
[1756248631792,8.539e-05,111940.0,111930.0,0.50957248]
[1756248639881,8.539e-05,111940.0,111930.0,1.01973003]
[1756248640084,8.539e-05,111940.0,111930.0,1.01873003]
[1756248640567,8.539e-05,111940.0,111930.0,1.27073003]
[1756248640888,8.539e-05,111940.0,111930.0,1.26873003]
[1756248641298,8.539e-05,111940.0,111930.0,1.27073003]
[1756248641824,8.539e-05,111940.0,111930.0,1.27373003]
[1756248642442,8.539e-05,111940.0,111930.0,1.27173003]
[1756248642784,8.539e-05,111940.0,111930.0,1.27473003]
[1756248643191,8.539e-05,111940.0,111930.0,1.47473003]
[1756248644525,8.539e-05,111940.0,111930.0,1.81473003]
[1756248644701,0.0004,111950.0,111940.0,1.06481169]
[1756248644860,0.00087801,111950.0,111940.0,1.17176851]
[1756248645068,0.00087801,111950.0,111940.0,1.17684851]
[1756248645406,0.00087801,111950.0,111940.0,1.20370851]
[1756248646062,0.00087801,111950.0,111940.0,1.20870851]
[1756248646624,0.00087801,111950.0,111940.0,1.21170851]
[1756248649805,0.00087801,111950.0,111940.0,1.47630851]
[1756248651055,0.00087801,111950.0,111940.0,1.62746851]
[1756248653394,0.00087801,111950.0,111940.0,1.96746851]
[1756248654212,0.00087801,111950.0,111940.0,2.36746851]
[1756248661417,0.00087801,111950.0,111940.0,2.5762873]
[1756248662345,1e-08,111950.0,111940.0,2.89004446]
[1756248662572,1e-08,111950.0,111940.0,2.73888446]
[1756248662790,1e-08,111950.0,111940.0,2.89000446]
[1756248665043,0.0004,111970.0,111960.0,0.44608424]
[1756248665044,0.0004,111970.0,111960.0,0.64608424]
[1756248665249,0.0004,111970.0,111960.0,1.85107296]
[1756248665419,0.0004,111970.0,111960.0,1.64685136]
[1756248665801,0.0004,111970.0,111960.0,1.65043236]
[1756248666458,0.0004,111970.0,111960.0,1.23221964]
[1756248666702,0.0004,111970.0,111960.0,1.65043236]
[1756248666888,0.0004,111970.0,111960.0,1.69115649]
[1756248668009,0.0004,111970.0,111960.0,1.69215649]
[1756248668226,0.0004,111970.0,111960.0,1.69415649]
[1756248668374,0.0004,111970.0,111960.0,1.70309078]
[1756248669106,0.0004,111970.0,111960.0,1.55197078]
[1756248669311,0.0004,111970.0,111960.0,1.70305078]
[1756248670336,0.0004,111970.0,111960.0,1.96765078]
[1756248671319,0.0004,111970.0,111960.0,1.54943806]
[1756248671526,0.0004,111970.0,111960.0,1.96765078]
[1756248672595,0.0004,111970.0,111960.0,2.30765078]
[1756248672812,0.0004,111970.0,111960.0,2.7258635]
[1756248673349,0.0004,111970.0,111960.0,2.30765078]
[1756248673775,1e-08,111970.0,111960.0,2.7258635]
[1756248674405,1e-08,111970.0,111960.0,2.4612635]
[1756248675030,1e-08,111970.0,111960.0,2.3101835]
[1756248675438,1e-08,111970.0,111960.0,2.4612635]
[1756248675754,1e-08,111970.0,111960.0,2.5747835]
[1756248675910,1e-08,111970.0,111960.0,2.7258635]
[1756248676954,1e-08,111970.0,111960.0,3.1258635]
[1756248678054,1e-08,111980.0,111970.0,1.40428101]
[1756248678192,1e-08,111980.0,111970.0,2.04563111]
[1756248678415,1e-08,111990.0,111980.0,1.40426506]
[1756248678607,1e-08,111990.0,111980.0,1.64998708]
[1756248678811,1e-08,111990.0,111980.0,2.05202708]
[1756248679620,1e-08,111990.0,111980.0,1.90098708]
[1756248679825,1e-08,111990.0,111980.0,2.06752188]
[1756248680027,0.0004,112010.0,112000.0,0.39602044]
[1756248680281,0.0004,112010.0,112000.0,0.70720246]
[1756248680483,0.00044776,112010.0,112000.0,1.72067518]
[1756248680695,0.00044776,112010.0,112000.0,1.52425418]
[1756248680978,0.00241776,112010.0,112000.0,1.10078146]
[1756248681188,0.00241776,112010.0,112000.0,1.71899418]
[1756248681396,0.00555776,112010.0,112000.0,1.71899418]
[1756248681611,0.00555776,112010.0,112000.0,1.75980435]
[1756248681836,0.00555776,112010.0,112000.0,1.76080435]
[1756248682047,0.00241776,112010.0,112000.0,2.16080435]
[1756248682272,0.00241776,112010.0,112000.0,2.16180435]
[1756248682913,0.00241776,112010.0,112000.0,1.59255163]
[1756248683098,0.00241776,112010.0,112000.0,2.16180435]
[1756248683234,0.00241776,112010.0,112000.0,2.16384435]
[1756248683992,0.00241776,112010.0,112000.0,2.16706435]
[1756248684383,0.00241776,112010.0,112000.0,2.01602435]
[1756248684688,0.00241776,112010.0,112000.0,2.16384435]
[1756248684887,0.00241776,112010.0,112000.0,0.80255163]
[1756248684888,0.00555776,112010.0,112000.0,0.80255163]
[1756248685089,0.00555776,112010.0,112000.0,0.95359163]
[1756248685584,0.00555776,112010.0,112000.0,0.55355163]
[1756248686189,0.00555776,112010.0,112000.0,0.40255163]
[1756248686359,0.00555776,112010.0,112000.0,0.55355163]
[1756248688196,0.00555776,112010.0,112000.0,0.29364059]
[1756248688197,0.42377048,112010.0,112000.0,0.29364059]
[1756248688404,0.42377048,112010.0,112000.0,0.44106159]
[1756248688606,0.42377048,112010.0,112000.0,0.45851061]
[1756248688973,0.42377048,112010.0,112000.0,0.45751061]
[1756248690228,0.42377048,112010.0,112000.0,0.30651061]
[1756248690432,0.42377048,112010.0,112000.0,0.45651061]
[1756248690643,0.42377048,112010.0,112000.0,0.30651061]
[1756248690846,0.00555776,112010.0,112000.0,0.45751061]
[1756248691048,0.42377048,112010.0,112000.0,0.45751061]
[1756248691440,0.00555776,112010.0,112000.0,0.45751061]
[1756248692543,0.60232596,112010.0,112000.0,0.45751061]
[1756248693590,0.60232596,112010.0,112000.0,0.45651061]
[1756248694346,0.60432596,112010.0,112000.0,0.45651061]
[1756248694548,0.60432596,112010.0,112000.0,0.30551061]
[1756248694810,0.60432596,112010.0,112000.0,0.45651061]
[1756248695388,0.42577048,112010.0,112000.0,0.45651061]
[1756248695943,0.00755776,112010.0,112000.0,0.45651061]
[1756248696148,0.42577048,112010.0,112000.0,0.45651061]
[1756248696987,0.60432596,112010.0,112000.0,0.45651061]
[1756248697398,0.60432596,112010.0,112000.0,0.30551061]
[1756248697597,0.60432596,112010.0,112000.0,0.45651061]
[1756248706412,0.60118596,112010.0,112000.0,0.45651061]
[1756248711432,0.60425596,112010.0,112000.0,0.12693919]
[1756248711635,0.60425596,112010.0,112000.0,0.27793919]
[1756248711843,1.02246868,112010.0,112000.0,0.12693919]
[1756248712054,1.02246868,112010.0,112000.0,0.27793919]
[1756248713840,0.60425596,112010.0,112000.0,0.27793919]
[1756248714422,0.60425596,112010.0,112000.0,0.12693919]
[1756248714658,0.60425596,112010.0,112000.0,0.27793919]
[1756248714857,1.02246868,112010.0,112000.0,0.27793919]
[1756248715635,0.60425596,112010.0,112000.0,0.27793919]
[1756248716668,0.41821272,112010.0,112000.0,0.27793919]
[1756248716887,0.5967682,112010.0,112000.0,0.27793919]
[1756248719986,0.5967682,112010.0,112000.0,0.28087919]
[1756248720706,0.5967682,112010.0,112000.0,0.27793919]
[1756248721494,0.5967682,112010.0,112000.0,0.28087919]
[1756248722720,0.5967682,112010.0,112000.0,0.28285919]
[1756248722939,0.5967682,112010.0,112000.0,0.28087919]
[1756248723976,0.5967682,112010.0,112000.0,0.23712902]
[1756248724325,0.5967682,112010.0,112000.0,0.24006902]
[1756248724897,1.01498092,112010.0,112000.0,0.24006902]
[1756248726619,0.5967682,112010.0,112000.0,0.24006902]
[1756248727088,0.5967682,112010.0,112000.0,0.06868]
[1756248727089,1.01498092,112010.0,112000.0,0.06868]
[1756248727363,1.01498092,112010.0,112000.0,0.21964]
[1756248731049,1.01498092,112010.0,112000.0,0.06868]
[1756248731050,1.39981629,112010.0,112000.0,0.06868]
[1756248731275,1.39981629,112010.0,112000.0,0.21964]
[1756248731495,1.42667429,112010.0,112000.0,0.21964]
[1756248732419,1.42967429,112010.0,112000.0,0.21964]
[1756248736122,1.38483892,112010.0,112000.0,0.21964]
[1756248739581,0.9666262,112010.0,112000.0,0.21964]
[1756248740050,1.38483892,112010.0,112000.0,0.21964]
[1756248740702,1.39881274,112010.0,112000.0,0.21964]
[1756248744704,1.38483892,112010.0,112000.0,0.21964]
[1756248744909,1.47628421,112010.0,112000.0,0.21964]
[1756248746858,1.47628421,112010.0,112000.0,0.15096]
[1756248747897,1.49025814,112010.0,112000.0,0.15096]
[1756248748765,0.51857142,112000.0,111990.0,0.07577472]
[1756248748977,3.69029115,112000.0,111990.0,0.22360472]
[1756248749562,0.17858737,111990.0,111980.0,0.07181]
[1756248749761,2.84064909,111990.0,111980.0,0.22492]
[1756248749960,0.59680009,111990.0,111980.0,0.22492]
[1756248750996,0.62366009,111990.0,111980.0,0.22492]
[1756248751204,0.71510538,111990.0,111980.0,0.22492]
[1756248751818,1.05610538,111990.0,111980.0,0.07181]
[1756248752008,0.17860332,111980.0,111970.0,0.07577472]
[1756248752208,0.59681604,111980.0,111970.0,0.22888472]
[1756248753233,0.59681604,111980.0,111970.0,0.22988472]
[1756248753628,0.59681604,111980.0,111970.0,0.07892472]
[1756248753832,0.59681604,111980.0,111970.0,0.22988472]
[1756248754032,0.17860332,111980.0,111970.0,0.22988472]
[1756248754231,0.59681604,111980.0,111970.0,0.22988472]
[1756248754441,0.20546532,111980.0,111970.0,0.24833374]
[1756248754641,0.62367804,111980.0,111970.0,0.17368902]
[1756248754839,0.59681604,111980.0,111970.0,0.17368902]
[1756248755064,0.59781604,111980.0,111970.0,0.17368902]
[1756248755219,0.17960332,111980.0,111970.0,0.17368902]
[1756248755443,0.17960332,111980.0,111970.0,0.42718575]
[1756248755652,0.17960332,111980.0,111970.0,0.42495301]
[1756248759646,0.17960332,111980.0,111970.0,0.35230829]
[1756248759872,0.17960332,111980.0,111970.0,0.17368902]
[1756248760259,0.59781604,111980.0,111970.0,0.17368902]
[1756248760469,0.59781604,111980.0,111970.0,0.17396902]
[1756248774697,0.001,111980.0,111970.0,0.35482103]
[1756248774917,0.001,111980.0,111970.0,0.93490775]
[1756248775278,0.17857401,112000.0,111990.0,0.19603639]
[1756248775480,0.17857401,112000.0,111990.0,0.42079639]
[1756248778101,0.17857401,112000.0,111990.0,0.24220902]
[1756248778783,0.59678673,112000.0,111990.0,0.24220902]
[1756248779190,0.59678673,112000.0,111990.0,0.42079639]
[1756248780022,0.59678673,112000.0,111990.0,0.46194016]
[1756248780943,0.59678673,112000.0,111990.0,0.31090016]
[1756248781264,0.59678673,112000.0,111990.0,0.46186016]
[1756248782541,0.59678673,112000.0,111990.0,0.28327279]
[1756248783384,0.59678673,112000.0,111990.0,0.46186016]
[1756248785279,0.59678673,112000.0,111990.0,0.28327279]
[1756248785680,0.59703673,112000.0,111990.0,0.28327279]
[1756248786462,1.01524945,112000.0,111990.0,0.12727279]
[1756248786677,0.59703673,112000.0,111990.0,0.27823279]
[1756248788368,0.59703673,112000.0,111990.0,0.12727279]
[1756248788550,0.59703673,112000.0,111990.0,0.27823279]
[1756248790537,0.59703673,112000.0,111990.0,0.28127279]
[1756248791390,0.17882401,112000.0,111990.0,0.28127279]
[1756248791623,0.59703673,112000.0,111990.0,0.28335279]
[1756248791840,0.59678673,112000.0,111990.0,0.28335279]
[1756248792055,0.17857142,112000.0,111990.0,0.46194016]
[1756248792272,0.59678414,112000.0,111990.0,0.46194016]
[1756248792491,0.60569597,112010.0,112000.0,0.01744902]
[1756248792728,0.60569597,112010.0,112000.0,0.20114044]
[1756248792944,0.42282679,112010.0,112000.0,0.20114044]
[1756248793160,0.60139679,112010.0,112000.0,0.20114044]
[1756248794037,0.60239679,112010.0,112000.0,0.20114044]
[1756248794241,0.60239679,112010.0,112000.0,0.02256902]
[1756248794457,0.60139679,112010.0,112000.0,0.20114044]
[1756248794670,0.18318407,112010.0,112000.0,0.35210044]
[1756248794875,0.002,112010.0,112000.0,0.35210044]
[1756248795077,0.17855548,112010.0,112000.0,0.35210044]
[1756248796281,0.5967682,112010.0,112000.0,0.35210044]
[1756248796906,0.17855548,112010.0,112000.0,0.35210044]
[1756248797122,0.5967682,112010.0,112000.0,0.35210044]
[1756248797527,0.5967682,112010.0,112000.0,0.20114044]
[1756248797721,0.5967682,112010.0,112000.0,0.35210044]
[1756248799772,0.5970182,112010.0,112000.0,0.35210044]
[1756248800305,0.5967682,112010.0,112000.0,0.35210044]
[1756248807611,0.5967682,112010.0,112000.0,0.35206044]
[1756248808692,0.21471983,112020.0,112010.0,0.17855548]
[1756248808908,0.027253,112020.0,112010.0,0.20335644]
[1756248809119,0.0004,112020.0,112010.0,0.2011245]
[1756248809988,0.0014,112020.0,112010.0,0.2011245]
[1756248810374,0.0004,112020.0,112010.0,0.2011245]
[1756248811611,0.0004,112020.0,112010.0,0.29258652]
[1756248811824,0.0004,112020.0,112010.0,0.71079924]
[1756248812242,0.0004,112020.0,112010.0,0.71179924]
[1756248812449,0.0004,112020.0,112010.0,0.29358652]
[1756248812854,0.0004,112020.0,112010.0,0.29458652]
[1756248813064,0.0004,112020.0,112010.0,0.44550652]